bitfinex/quotes_BTCUSD_20230113
["timestamp","ask_amount","ask_price","bid_price","bid_amount"]
[1673648176341,0.82662043,19894.0,19889.0,0.03663964]
[1673648176567,0.61631549,19894.0,19890.0,0.03663964]
[1673648176803,0.61631549,19894.0,19891.0,0.03663964]
[1673648177055,0.586865,19894.0,19891.0,0.03663964]
[1673648177534,0.586865,19894.0,19887.0,0.502817]
[1673648177775,0.586865,19894.0,19887.0,0.46964664]
[1673648177776,0.21030494,19893.0,19887.0,0.46964664]
[1673648178029,1.82610264,19892.0,19887.0,0.03663964]
[1673648178266,0.21030494,19891.0,19885.0,1.005767]
[1673648178501,0.21030494,19890.0,19885.0,0.50289]
[1673648178767,0.21030494,19889.0,19885.0,0.50289]
[1673648179232,0.21030494,19889.0,19886.0,0.323922]
[1673648179472,0.01433645,19890.0,19887.0,0.032734]
[1673648179714,0.01433645,19890.0,19888.0,0.323888]
[1673648179965,0.01433645,19890.0,19885.0,0.502866]
[1673648180237,0.21030494,19889.0,19885.0,0.462866]
[1673648180742,0.01433645,19890.0,19886.0,0.323922]
[1673648180974,0.01433645,19890.0,19887.0,0.032734]
[1673648181278,0.01433645,19890.0,19888.0,0.323886]
[1673648181507,0.01433645,19890.0,19889.0,0.323922]
[1673648181508,0.01453645,19890.0,19889.0,0.323922]
[1673648183048,0.01433645,19890.0,19889.0,0.323922]
[1673648183528,0.11433645,19890.0,19889.0,0.323922]
[1673648183781,0.11433645,19890.0,19889.0,0.826712]
[1673648184032,0.04759889,19890.0,19889.0,2.63466752]
[1673648184275,0.02669036,19890.0,19889.0,2.47626752]
[1673648184520,0.02669036,19890.0,19889.0,1.329502]
[1673648185753,0.00150884,19896.0,19889.0,1.629502]
[1673648186011,0.00150884,19896.0,19891.0,0.1416]
[1673648186239,0.00150884,19896.0,19892.0,1.86861064]
[1673648186477,0.00150884,19896.0,19893.0,0.032664]
[1673648186727,0.00150884,19896.0,19894.0,1.329159]
[1673648186962,0.00150884,19896.0,19895.0,0.032659]
[1673648187197,0.00150884,19896.0,19895.0,0.535297]
[1673648188181,0.00150884,19896.0,19895.0,0.032659]
[1673648188445,0.00150884,19896.0,19894.0,0.502641]
[1673648188688,0.00150884,19896.0,19893.0,0.502671]
[1673648188689,0.21181378,19896.0,19892.0,0.502706]
[1673648189511,0.21181378,19896.0,19892.0,1.00542]
[1673648189777,0.00150884,19896.0,19892.0,1.04206764]
[1673648190758,0.00150884,19896.0,19893.0,0.323922]
[1673648190996,0.00150884,19896.0,19894.0,1.037915]
[1673648190997,0.21181378,19896.0,19894.0,1.037915]
[1673648191233,0.00150884,19896.0,19895.0,0.323888]
[1673648191536,0.00150884,19896.0,19893.0,0.502665]
[1673648191794,0.00150884,19896.0,19894.0,0.826585]
[1673648192033,0.00150884,19896.0,19895.0,0.032568]
[1673648192287,0.00150884,19896.0,19895.0,1.037844]
[1673648193756,0.00150884,19896.0,19895.0,0.535206]
[1673648193998,0.21181378,19896.0,19895.0,0.032568]
[1673648194244,1.53296754,19896.0,19895.0,0.032568]
[1673648194985,1.53296754,19896.0,19891.0,0.00019]
[1673648195218,0.21030494,19895.0,19891.0,0.00019]
[1673648195956,0.00150884,19896.0,19891.0,1.04230064]
[1673648196212,0.71442678,19896.0,19895.0,0.03158909]
[1673648196512,1.00674284,19896.0,19895.0,0.03158909]
[1673648196761,1.14734284,19896.0,19895.0,0.03158909]
[1673648197233,1.67357554,19896.0,19895.0,0.03158909]
[1673648197471,1.89119429,19896.0,19895.0,0.03158909]
[1673648197721,1.00674284,19896.0,19895.0,0.03158909]
[1673648197976,0.50412984,19896.0,19895.0,0.03158909]
[1673648198223,0.00150884,19896.0,19895.0,0.03158909]
[1673648198463,0.49912084,19897.0,19895.0,0.03158909]
[1673648199415,0.5262327,19896.0,19895.0,0.03158909]
[1673648199646,1.0288457,19896.0,19895.0,0.03158909]
[1673648200114,1.5314587,19896.0,19895.0,0.03158909]
[1673648200859,1.005226,19896.0,19895.0,0.03158909]
[1673648201842,1.5314587,19896.0,19895.0,0.03158909]
[1673648202316,1.7247137,19896.0,19895.0,0.03158909]
[1673648202558,1.6730587,19896.0,19895.0,0.03158909]
[1673648202799,1.8663137,19896.0,19895.0,0.03158909]
[1673648203055,2.24853159,19896.0,19895.0,0.03158909]
[1673648203306,2.0563137,19896.0,19895.0,0.03158909]
[1673648203570,2.0563137,19896.0,19891.0,0.00019]
[1673648203571,2.68627892,19896.0,19891.0,0.00019]
[1673648203828,0.39284,19894.0,19891.0,0.00019]
[1673648204068,0.1407,19892.0,19886.0,0.00603347]
[1673648204306,0.25138,19890.0,19886.0,0.00603347]
[1673648204570,0.90635494,19889.0,19886.0,0.00603347]
[1673648204813,0.21030494,19888.0,19886.0,0.00603347]
[1673648205045,0.193255,19887.0,19886.0,0.00603347]
[1673648205339,0.21030494,19888.0,19886.0,0.00603347]
[1673648205340,0.32854281,19888.0,19886.0,0.00603347]
[1673648205562,0.32854281,19888.0,19887.0,0.08167202]
[1673648205563,0.11823787,19888.0,19887.0,0.08167202]
[1673648205814,0.502813,19889.0,19887.0,0.08167202]
[1673648206063,1.0290457,19889.0,19887.0,0.08167202]
[1673648206311,0.193255,19888.0,19887.0,0.08167202]
[1673648206548,1.198885,19888.0,19887.0,0.08167202]
[1673648206789,2.15821341,19888.0,19887.0,0.08167202]
[1673648207058,1.94790847,19888.0,19887.0,0.08167202]
[1673648207298,2.41718727,19888.0,19887.0,0.08167202]
[1673648207535,1.198885,19888.0,19887.0,0.08167202]
[1673648208035,0.193255,19888.0,19887.0,0.11831166]
[1673648208302,1.589381,19890.0,19887.0,0.08167202]
[1673648208541,0.193255,19889.0,19887.0,0.11831166]
[1673648208789,0.502781,19890.0,19887.0,0.08167202]
[1673648209028,1.005547,19890.0,19887.0,0.08167202]
[1673648209283,1.88338464,19890.0,19887.0,0.08167202]
[1673648209542,0.193255,19889.0,19887.0,0.08151238]
[1673648209822,1.00563,19888.0,19887.0,0.08151238]
[1673648210074,1.9728627,19888.0,19887.0,0.08151238]
[1673648210304,1.6728627,19888.0,19887.0,1.0870854]
[1673648210556,1.6728627,19888.0,19887.0,1.08697319]
[1673648211051,1.8661177,19888.0,19887.0,0.07963299]
[1673648211277,2.1661177,19888.0,19887.0,0.07963299]
[1673648211816,1.339885,19888.0,19887.0,0.07963299]
[1673648212046,0.141,19888.0,19887.0,0.11627263]
[1673648212306,0.141,19888.0,19887.0,0.07963299]
[1673648212547,0.502792,19889.0,19887.0,0.07963299]
[1673648212788,0.502792,19889.0,19888.0,1.00549519]
[1673648213033,0.502766,19890.0,19888.0,1.00549519]
[1673648213781,1.12933764,19889.0,19887.0,0.07963299]
[1673648214049,2.57923764,19888.0,19887.0,0.07963299]
[1673648214284,2.8382115,19888.0,19887.0,0.07963299]
[1673648214523,3.1382115,19888.0,19887.0,0.07963299]
[1673648214783,3.1382115,19888.0,19886.0,0.00603347]
[1673648215013,1.28165385,19887.0,19886.0,0.00603347]
[1673648215248,0.502841,19887.0,19886.0,1.01153747]
[1673648216762,0.19,19890.0,19887.0,0.05028409]
[1673648216992,0.19,19890.0,19888.0,2.37169564]
[1673648216993,0.19012,19890.0,19888.0,2.37169564]
[1673648217256,0.19012,19890.0,19889.0,1.07483664]
[1673648217762,0.19012,19890.0,19889.0,1.540987]
[1673648218009,0.19012,19890.0,19889.0,2.043777]
[1673648218964,0.209132,19890.0,19889.0,1.038197]
[1673648219207,0.19,19890.0,19889.0,1.038197]
[1673648219937,0.19,19890.0,19889.0,0.988197]
[1673648220179,0.19,19890.0,19889.0,0.323894]
[1673648220432,0.19,19890.0,19889.0,0.826684]
[1673648220674,0.19,19890.0,19889.0,1.329474]
[1673648221164,0.19,19890.0,19889.0,1.50771364]
[1673648221420,0.08800029,19890.0,19889.0,1.771074]
[1673648221919,0.08800029,19890.0,19889.0,1.81676621]
[1673648222164,0.08800029,19890.0,19889.0,1.771074]
[1673648222417,6e-05,19893.0,19889.0,1.96022544]
[1673648222668,0.1229,19894.0,19890.0,0.47823964]
[1673648222915,0.1229,19894.0,19891.0,1.86869764]
[1673648223185,0.1229,19894.0,19892.0,0.323836]
[1673648223468,0.1178,19894.0,19893.0,1.54470664]
[1673648223725,0.1178,19894.0,19893.0,2.273485]
[1673648223977,0.1178,19894.0,19893.0,1.973485]
[1673648224945,0.3078,19894.0,19893.0,1.329196]
[1673648226407,0.3078,19894.0,19893.0,1.3291158]
[1673648226751,0.1178,19894.0,19893.0,1.3291158]
[1673648226995,0.0624154,19894.0,19893.0,1.9112158]
[1673648228019,0.04524367,19894.0,19893.0,1.9112158]
[1673648228533,0.03524367,19894.0,19893.0,1.9112158]
[1673648229040,0.03524367,19894.0,19893.0,2.05467503]
[1673648229283,0.01489502,19896.0,19893.0,2.05467503]
[1673648229284,0.01224841,19896.0,19893.0,2.05467503]
[1673648229538,0.01224841,19896.0,19895.0,0.1416]
[1673648229781,0.01224841,19896.0,19895.0,1.973295]
[1673648230027,0.01224841,19896.0,19895.0,2.273295]
[1673648231278,4.1e-07,19896.0,19895.0,2.88185955]
[1673648231528,0.01534608,19899.0,19895.0,2.84521991]
[1673648231785,0.01534608,19899.0,19896.0,0.33663964]
[1673648232080,0.01534608,19899.0,19898.0,0.1416]
[1673648232324,0.01534608,19899.0,19898.0,1.446726]
[1673648232577,0.01534608,19899.0,19898.0,1.770446]
[1673648233110,0.01502805,19900.0,19898.0,1.770446]
[1673648233353,0.01715623,19905.0,19899.0,0.01095123]
[1673648233614,0.01715623,19905.0,19900.0,1.831221]
[1673648233862,0.01715623,19905.0,19900.0,1.507536]
[1673648234141,0.01715623,19905.0,19901.0,0.323664]
[1673648234142,0.00012,19904.0,19901.0,0.323664]
[1673648234388,0.00012,19904.0,19901.0,1.470038]
[1673648234635,0.00012,19904.0,19901.0,1.770038]
[1673648234925,0.00012,19904.0,19901.0,1.470038]
[1673648235922,3.645e-05,19902.0,19901.0,1.80667764]
[1673648236173,0.00012,19904.0,19901.0,1.94717764]
[1673648236425,0.01715623,19905.0,19903.0,0.1415]
[1673648236713,0.01817305,19908.0,19904.0,2.151044]
[1673648236935,0.00804162,19908.0,19905.0,0.50162864]
[1673648237178,0.00804162,19908.0,19906.0,1.507083]
[1673648237435,0.00804162,19908.0,19907.0,0.465149]
[1673648237663,0.00804162,19908.0,19907.0,1.469819]
[1673648237923,0.00012,19911.0,19907.0,1.50645864]
[1673648238174,0.00012,19911.0,19910.0,0.1414]
[1673648238430,0.01329305,19913.0,19910.0,2.473933]
[1673648238687,0.01329305,19913.0,19910.0,1.54341964]
[1673648238928,0.01329305,19913.0,19911.0,0.32347]
[1673648239171,0.01329305,19913.0,19912.0,0.502209]
[1673648239436,0.01329305,19913.0,19912.0,0.825661]
[1673648239674,0.01329305,19913.0,19912.0,1.32787]
[1673648239916,0.01329305,19913.0,19912.0,1.32900012]
[1673648240668,0.01329305,19913.0,19912.0,1.47072012]
[1673648240930,0.01329305,19913.0,19912.0,1.77072012]
[1673648241190,0.01329305,19913.0,19912.0,1.47072012]
[1673648241679,9.305e-05,19913.0,19912.0,1.77072012]
[1673648241974,0.11817886,19915.0,19912.0,2.47469246]
[1673648242217,0.01835921,19918.0,19913.0,1.36505434]
[1673648242486,0.01835921,19921.0,19914.0,1.02918634]
[1673648242710,0.01835921,19921.0,19919.0,0.1416]
[1673648242978,0.01835921,19921.0,19920.0,1.86596764]
[1673648243216,0.01835921,19921.0,19920.0,2.16596764]
[1673648243466,1.23522429,19925.0,19920.0,2.30756764]
[1673648243732,1.23522429,19925.0,19922.0,0.1416]
[1673648243977,1.23522429,19925.0,19923.0,1.86567664]
[1673648244261,1.23522429,19925.0,19924.0,0.32322]
[1673648244510,1.23522429,19925.0,19924.0,0.76482]
[1673648244756,1.23522429,19925.0,19924.0,0.46482]
[1673648245013,1.23522429,19925.0,19924.0,0.32322]
[1673648245255,1.23522429,19925.0,19921.0,0.501967]
[1673648245497,1.44552923,19925.0,19921.0,0.501967]
[1673648245747,1.23522429,19925.0,19921.0,0.68020664]
[1673648245989,1.23522429,19925.0,19922.0,0.323253]
[1673648246240,1.23522429,19925.0,19923.0,1.468702]
[1673648246490,1.23522429,19925.0,19923.0,1.145464]
[1673648246732,1.23522429,19925.0,19924.0,0.32322]
[1673648247988,1.23522429,19925.0,19924.0,0.46482]
[1673648248481,1.23522429,19925.0,19924.0,0.32322]
[1673648248731,1.23522429,19925.0,19924.0,0.32328]
[1673648249478,1.44552923,19925.0,19924.0,0.32328]
[1673648249720,1.23522429,19925.0,19924.0,0.32328]
[1673648249971,1.23522429,19925.0,19924.0,0.825187]
[1673648250705,1.23522429,19925.0,19924.0,6e-05]
[1673648250706,1.44552923,19925.0,19924.0,6e-05]
[1673648250957,1.46116229,19925.0,19924.0,6e-05]
[1673648251724,1.23522429,19925.0,19924.0,6e-05]
[1673648251963,1.23522429,19925.0,19924.0,0.501967]
[1673648252222,1.23522429,19925.0,19924.0,6e-05]
[1673648252470,1.41116229,19925.0,19924.0,6e-05]
[1673648252968,1.18522429,19925.0,19924.0,0.03669964]
[1673648253213,1.18522429,19925.0,19924.0,0.53860664]
[1673648253459,0.96317307,19926.0,19924.0,1.73375055]
[1673648253705,0.01655742,19927.0,19925.0,0.8262327]
[1673648253953,0.01655742,19927.0,19926.0,1.970353]
[1673648254198,0.01655742,19927.0,19926.0,2.32579214]
[1673648254685,0.02917789,19934.0,19926.0,2.98387791]
[1673648254935,0.02917789,19934.0,19928.0,0.1416]
[1673648255180,0.02917789,19934.0,19929.0,1.828469]
[1673648255424,0.02917789,19934.0,19929.0,1.505343]
[1673648255666,0.02917789,19934.0,19930.0,0.323105]
[1673648255909,0.02917789,19934.0,19930.0,0.35974464]
[1673648256155,0.02917789,19934.0,19930.0,0.6242341]
[1673648256671,0.01743669,19933.0,19930.0,0.4656341]
[1673648256962,1.41357305,19937.0,19935.0,0.01315566]
[1673648257229,1.41357305,19937.0,19936.0,1.5425834]
[1673648257485,1.41357305,19937.0,19936.0,2.1655734]
[1673648257743,1.41357305,19937.0,19936.0,0.32299]
[1673648258006,1.41357305,19937.0,19935.0,0.01315566]
[1673648259040,1.41357305,19937.0,19935.0,0.51477666]
[1673648259523,1.62387799,19937.0,19935.0,0.01315566]
[1673648259772,1.41357305,19937.0,19935.0,0.01315566]
[1673648260028,0.225938,19936.0,19935.0,0.01315566]
[1673648260290,0.9669567,19936.0,19928.0,0.501787]
[1673648260540,0.5999187,19933.0,19927.0,0.01929964]
[1673648260783,0.1406,19934.0,19927.0,0.52112464]
[1673648260784,0.43624294,19932.0,19927.0,0.52112464]
[1673648261036,0.21030494,19931.0,19927.0,0.52112464]
[1673648262273,0.25077,19939.0,19927.0,0.55776428]
[1673648262512,0.15405024,19941.0,19936.0,0.79018142]
[1673648262513,0.87673764,19938.0,19936.0,0.79018142]
[1673648262757,1.0277987,19938.0,19937.0,0.04163964]
[1673648262989,1.0277987,19938.0,19936.0,0.83182106]
[1673648262990,2.0373907,19938.0,19936.0,0.83182106]
[1673648263233,0.8160327,19937.0,19936.0,0.69975031]
[1673648263470,1.5435497,19937.0,19936.0,0.61578291]
[1673648263725,1.59582977,19937.0,19927.0,0.01929964]
[1673648263978,0.39147,19931.0,19927.0,0.06093928]
[1673648264225,0.43624294,19930.0,19927.0,0.01929964]
[1673648264498,0.21030494,19929.0,19927.0,0.01929964]
[1673648264745,0.225938,19928.0,19927.0,0.01929964]
[1673648264993,0.50176,19930.0,19927.0,0.01929964]
[1673648265245,0.642338,19931.0,19927.0,0.01929964]
[1673648265500,0.642338,19931.0,19927.0,0.22960458]
[1673648265501,0.7708127,19931.0,19927.0,0.22960458]
[1673648265763,0.1406,19931.0,19927.0,0.22960458]
[1673648266010,0.34855793,19931.0,19927.0,0.01929964]
[1673648266499,1.37202763,19931.0,19927.0,0.01929964]
[1673648266746,0.1407,19932.0,19927.0,0.22960458]
[1673648266991,0.1407,19932.0,19928.0,0.21030494]
[1673648267240,0.642408,19932.0,19928.0,0.21030494]
[1673648267490,2.4362,19934.0,19929.0,0.21030494]
[1673648267735,0.501622,19936.0,19930.0,0.81030494]
[1673648267988,0.501622,19936.0,19930.0,1.09624179]
[1673648268215,0.5262327,19935.0,19930.0,0.501749]
[1673648268458,1.5295627,19934.0,19928.0,0.59449279]
[1673648268701,0.36326121,19933.0,19928.0,0.59449279]
[1673648268957,0.73653764,19932.0,19927.0,0.01929964]
[1673648269210,1.12800764,19931.0,19927.0,0.01929964]
[1673648269713,1.62974164,19931.0,19927.0,0.01929964]
[1673648269974,1.8544,19935.0,19927.0,0.01929964]
[1673648269975,0.01808544,19937.0,19930.0,0.59449279]
[1673648270216,0.01808544,19937.0,19933.0,1.38252945]
[1673648270463,0.00308544,19937.0,19936.0,0.59449279]
[1673648270725,0.00308544,19937.0,19936.0,1.41985579]
[1673648272041,0.00308544,19937.0,19936.0,1.42098455]
[1673648272543,0.00308544,19937.0,19936.0,0.323758]
[1673648273297,0.00308544,19937.0,19933.0,1.97702224]
[1673648273546,0.00308544,19937.0,19933.0,1.38252945]
[1673648273547,0.21030494,19936.0,19933.0,1.38252945]
[1673648273789,0.73653764,19935.0,19933.0,1.38252945]
[1673648274037,1.99067764,19934.0,19933.0,2.945e-05]
[1673648274291,1.73984764,19934.0,19932.0,0.00019]
[1673648274533,0.5262327,19933.0,19932.0,0.00019]
[1673648274774,0.70021746,19933.0,19932.0,0.00019]
[1673648275027,1.00331,19934.0,19932.0,0.00019]
[1673648275526,0.5262327,19933.0,19931.0,1.67873132]
[1673648275775,0.501696,19933.0,19931.0,1.67873132]
[1673648276277,0.5262327,19932.0,19931.0,1.67873132]
[1673648276517,0.501659,19934.0,19931.0,1.67873132]
[1673648276771,0.1406,19936.0,19933.0,0.59449279]
[1673648277032,0.00308544,19937.0,19936.0,6e-05]
[1673648277284,0.1411,19939.0,19936.0,6e-05]
[1673648277532,1.2884,19941.0,19936.0,6e-05]
[1673648277533,1.790696,19941.0,19936.0,6e-05]
[1673648277786,0.5262327,19940.0,19936.0,6e-05]
[1673648278037,1.6699007,19939.0,19936.0,6e-05]
[1673648278562,0.5262327,19938.0,19936.0,6e-05]
[1673648278811,1.003158,19937.0,19936.0,6e-05]
[1673648279059,1.9217907,19937.0,19934.0,0.7452426]
[1673648279359,0.1416,19936.0,19934.0,0.74512333]
[1673648279576,0.643213,19936.0,19934.0,0.74512333]
[1673648279819,0.501579,19937.0,19934.0,1.33961612]
[1673648280084,0.643034,19939.0,19936.0,0.59449279]
[1673648280830,0.643034,19939.0,19934.0,1.33961612]
[1673648281088,0.85333894,19939.0,19934.0,1.33961612]
[1673648281359,0.21030494,19938.0,19934.0,0.74512333]
[1673648281589,1.10427994,19937.0,19934.0,0.74512333]
[1673648281867,0.6678327,19936.0,19934.0,0.74512333]
[1673648282125,1.00326,19935.0,19934.0,0.74512333]
[1673648282369,1.00326,19935.0,19933.0,0.00019]
[1673648282370,1.85923246,19935.0,19933.0,0.00019]
[1673648282619,0.9177727,19934.0,19933.0,0.00019]
[1673648282862,2.13138764,19934.0,19933.0,0.00019]
[1673648283145,2.0617827,19934.0,19931.0,1.67873132]
[1673648283356,0.2826,19932.0,19931.0,1.67873132]
[1673648283606,2.3139477,19932.0,19931.0,1.67873132]
[1673648284117,2.6139477,19932.0,19931.0,1.67873132]
[1673648284375,1.28601,19932.0,19931.0,1.67873132]
[1673648284607,1.8122427,19932.0,19931.0,1.67873132]
[1673648285838,2.04363737,19932.0,19931.0,1.62716784]
[1673648286085,2.1227427,19932.0,19931.0,1.3754465]
[1673648286327,2.1142427,19932.0,19931.0,1.3754465]
[1673648286571,2.1227427,19932.0,19931.0,1.3754465]
[1673648286818,2.1227427,19932.0,19927.0,0.01929964]
[1673648287070,0.1416,19929.0,19927.0,0.01929964]
[1673648287315,0.501806,19928.0,19927.0,0.61379243]
[1673648287825,1.1696227,19929.0,19927.0,0.6141917]
[1673648287826,0.1416,19929.0,19927.0,0.6141917]
[1673648288065,0.1416,19930.0,19927.0,0.6141917]
[1673648288338,0.1416,19930.0,19929.0,0.59449279]
[1673648288581,0.643357,19930.0,19929.0,0.59449279]
[1673648288829,0.643357,19930.0,19929.0,0.5948269]
[1673648289081,0.643357,19930.0,19929.0,0.59449279]
[1673648289331,0.1416,19930.0,19929.0,0.59449279]
[1673648289579,0.1416,19933.0,19929.0,0.59449279]
[1673648289835,0.1416,19933.0,19928.0,2.158497]
[1673648290102,0.1416,19933.0,19932.0,0.59449279]
[1673648290840,0.1416,19933.0,19928.0,1.656703]
[1673648290841,1.5619527,19933.0,19928.0,0.59449279]
[1673648291099,0.1413,19929.0,19928.0,0.59449279]
[1673648291346,0.85338594,19929.0,19928.0,0.59449279]
[1673648291593,1.52031864,19929.0,19927.0,0.01929964]
[1673648291837,1.51453433,19929.0,19928.0,0.59449279]
[1673648292087,1.44582939,19929.0,19928.0,0.59449279]
[1673648292338,1.44582939,19929.0,19927.0,0.01929964]
[1673648292583,0.81241564,19928.0,19927.0,0.01929964]
[1673648292834,1.81602764,19928.0,19927.0,0.01929964]
[1673648293320,1.6714447,19928.0,19927.0,0.01929964]
[1673648294077,1.6714447,19928.0,19927.0,0.01429964]
[1673648295111,2.32267836,19928.0,19921.0,0.0045253]
[1673648295375,0.1416,19923.0,19922.0,0.00459543]
[1673648295668,1.35576894,19923.0,19922.0,0.00459543]
[1673648295873,1.92125764,19923.0,19922.0,0.00459543]
[1673648296117,1.145464,19923.0,19922.0,0.59908822]
[1673648297115,1.9226867,19923.0,19922.0,0.59908822]
[1673648297363,2.0628867,19923.0,19922.0,0.00459543]
[1673648297611,2.31936637,19923.0,19922.0,0.00459543]
[1673648298649,2.32786637,19923.0,19922.0,0.00459543]
[1673648299657,3.03586637,19923.0,19922.0,0.00459543]
[1673648300419,0.5395,19922.0,19918.0,0.00480746]
[1673648300677,0.53233,19919.0,19918.0,0.00480746]
[1673648300919,2.52393664,19919.0,19918.0,0.59930025]
[1673648301160,2.3221317,19919.0,19918.0,0.00480746]
[1673648301653,2.6221317,19919.0,19918.0,0.00480746]
[1673648301899,2.68024687,19919.0,19918.0,0.00461746]
[1673648302147,2.3221317,19919.0,19918.0,0.00461746]
[1673648302397,2.6221317,19919.0,19918.0,0.00461746]
[1673648302643,3.3302317,19919.0,19918.0,0.00461746]
[1673648303184,3.0302317,19919.0,19918.0,0.00461746]
[1673648303415,3.72915687,19919.0,19918.0,0.00461746]
[1673648303680,5.24107272,19919.0,19918.0,0.00461746]
[1673648303924,4.78143694,19919.0,19918.0,0.00461746]
[1673648304418,5.78065781,19919.0,19918.0,4.6e-07]
[1673648304667,5.78065781,19919.0,19916.0,0.00484737]
[1673648304907,5.78065781,19919.0,19914.0,0.00019]
[1673648304908,1.7645327,19917.0,19914.0,0.00019]
[1673648305155,0.8080327,19915.0,19914.0,0.00019]
[1673648305400,1.8208007,19915.0,19914.0,0.00019]
[1673648305642,2.1208007,19915.0,19912.0,0.59449279]
[1673648305911,0.5343,19913.0,19912.0,0.59449279]
[1673648306166,3.0777687,19913.0,19912.0,0.59449279]
[1673648306417,2.8181687,19913.0,19912.0,0.59449279]
[1673648306676,2.6765687,19913.0,19912.0,0.59449279]
[1673648306916,2.6850687,19913.0,19912.0,0.59449279]
[1673648307185,1.004368,19913.0,19912.0,0.59449279]
[1673648307413,0.502184,19913.0,19912.0,0.60003001]
[1673648307676,1.5306007,19913.0,19912.0,0.60003001]
[1673648307917,1.84134044,19913.0,19908.0,0.00955108]
[1673648308147,0.21030494,19912.0,19908.0,0.00955108]
[1673648308398,0.71253794,19912.0,19911.0,0.59449279]
[1673648308641,0.502233,19912.0,19911.0,0.59449279]
[1673648308868,0.502233,19912.0,19911.0,0.58449279]
[1673648309106,1.004442,19912.0,19911.0,0.58449279]
[1673648309586,0.502209,19912.0,19911.0,0.58449279]
[1673648309840,1.004418,19912.0,19911.0,0.58449279]
[1673648310342,1.5306507,19912.0,19911.0,0.58449279]
[1673648310834,1.5391507,19912.0,19911.0,0.58449279]
[1673648311086,1.012918,19912.0,19911.0,0.58449279]
[1673648311309,1.004418,19912.0,19911.0,0.58449279]
[1673648313792,1.5391507,19912.0,19911.0,0.58449279]
[1673648315517,2.46986826,19912.0,19911.0,0.58449279]
[1673648315750,2.46986826,19912.0,19909.0,0.58449279]
[1673648315993,0.39176,19910.0,19907.0,0.00019]
[1673648316235,0.502265,19910.0,19909.0,0.58449279]
[1673648316471,1.506785,19910.0,19909.0,0.58449279]
[1673648319192,2.0330177,19910.0,19909.0,0.58449279]
[1673648319464,2.2926577,19910.0,19909.0,0.58449279]
[1673648319697,2.2926577,19910.0,19905.0,0.59022001]
[1673648319936,0.001,19907.0,19905.0,0.00572722]
[1673648320186,1.004722,19906.0,19905.0,0.00572722]
[1673648320416,1.004722,19906.0,19905.0,0.59022001]
[1673648320892,1.004722,19906.0,19905.0,0.59003001]
[1673648321127,1.6816613,19906.0,19905.0,0.59003001]
[1673648321386,1.1639286,19906.0,19905.0,0.59003001]
[1673648321633,1.1554286,19906.0,19905.0,0.59003001]
[1673648321863,1.004722,19906.0,19905.0,0.59003001]
[1673648323845,1.7906347,19906.0,19905.0,0.59003001]
[1673648324347,2.5929957,19906.0,19905.0,0.59003001]
[1673648324588,2.0418157,19906.0,19905.0,0.59003001]
[1673648325307,2.53013433,19906.0,19905.0,0.59003001]
[1673648325580,3.01425916,19906.0,19905.0,0.59003001]
[1673648325823,2.0418157,19906.0,19905.0,0.59003001]
[1673648326774,2.2930157,19906.0,19905.0,0.59003001]
[1673648327036,2.0418157,19906.0,19905.0,0.59003001]
[1673648328271,2.1831157,19906.0,19905.0,0.59003001]
[1673648328510,2.0418157,19906.0,19905.0,0.59003001]
[1673648330219,2.4829157,19906.0,19905.0,0.59003001]
[1673648330453,2.4829157,19906.0,19903.0,0.00578634]
[1673648330709,0.25124,19904.0,19903.0,0.00578634]
[1673648330942,3.0956167,19904.0,19903.0,0.00578634]
[1673648331419,3.2362167,19904.0,19903.0,3.4e-07]
[1673648331666,3.2362167,19904.0,19901.0,0.00019]
[1673648331667,3.55993837,19904.0,19901.0,0.00019]
[1673648331961,0.9763327,19903.0,19901.0,0.58468279]
[1673648332205,2.0336187,19902.0,19899.0,0.00578634]
[1673648332435,0.5347327,19901.0,19899.0,0.00578634]
[1673648332688,2.0337687,19900.0,19899.0,0.00578634]
[1673648332929,2.0422687,19900.0,19899.0,0.54027913]
[1673648333399,2.0172687,19900.0,19899.0,0.54027913]
[1673648334416,1.482536,19900.0,19899.0,0.54027913]
[1673648334904,2.2685287,19900.0,19899.0,0.54027913]
[1673648335409,2.54563277,19900.0,19899.0,0.54027913]
[1673648335899,2.0172687,19900.0,19899.0,0.54027913]
[1673648336391,1.491036,19900.0,19899.0,0.54027913]
[1673648336632,1.482536,19900.0,19899.0,0.53527913]
[1673648337637,2.0172687,19900.0,19899.0,0.53527913]
[1673648337876,2.0172687,19900.0,19899.0,0.53027913]
[1673648337877,2.30843177,19900.0,19899.0,0.53027913]
[1673648338119,2.0172687,19900.0,19899.0,0.53027913]
[1673648340926,1.482536,19900.0,19899.0,0.53027913]
[1673648341174,0.980024,19900.0,19899.0,0.53027913]
[1673648342445,0.522408,19905.0,19899.0,1.5352439]
[1673648342698,0.522408,19905.0,19904.0,0.53027913]
[1673648342966,0.02,19905.0,19904.0,0.75634313]
[1673648343711,0.02,19905.0,19904.0,1.76107338]
[1673648344710,0.01535913,19912.0,19904.0,2.64768438]
[1673648344983,0.01535913,19912.0,19906.0,0.6]
[1673648345226,0.01535913,19912.0,19911.0,0.53027913]
[1673648345470,0.01535913,19912.0,19911.0,0.85393313]
[1673648346277,0.01535913,19912.0,19911.0,1.85866338]
[1673648346488,0.01535913,19912.0,19911.0,2.24286338]
[1673648346489,5.913e-05,19912.0,19911.0,2.24286338]
[1673648346732,0.01535913,19918.0,19911.0,2.32706338]
[1673648346978,0.01535913,19918.0,19913.0,0.502181]
[1673648347234,0.01535913,19918.0,19917.0,0.53027913]
[1673648347479,0.01535913,19918.0,19917.0,0.83977413]
[1673648347969,0.01535913,19918.0,19917.0,0.75117413]
[1673648348220,0.01535913,19918.0,19917.0,1.85607413]
[1673648348711,0.01535913,19918.0,19917.0,1.94027413]
[1673648349985,0.01535913,19918.0,19917.0,1.85607413]
[1673648351745,0.01535913,19918.0,19917.0,1.85584277]
[1673648351983,0.01535913,19918.0,19917.0,0.75094277]
[1673648352245,0.01535913,19918.0,19917.0,0.52504777]
[1673648353019,0.01535913,19918.0,19917.0,0.93309177]
[1673648355061,0.00037004,19918.0,19917.0,0.93309177]
[1673648355524,0.00037004,19918.0,19917.0,1.43517477]
[1673648356493,7.55e-06,19918.0,19917.0,1.73517477]
[1673648356736,7.55e-06,19918.0,19917.0,1.81937477]
[1673648358433,7.55e-06,19918.0,19917.0,2.32145777]
[1673648358689,0.60100755,19918.0,19917.0,2.32145777]
[1673648358964,0.60100755,19918.0,19917.0,2.02145777]
[1673648359217,0.60100755,19918.0,19917.0,2.32145777]
[1673648359453,0.60100755,19918.0,19917.0,2.322613]
[1673648359976,0.60100755,19918.0,19917.0,1.938413]
[1673648361211,0.60100755,19918.0,19917.0,2.022613]
[1673648361454,0.60100755,19918.0,19917.0,2.322613]